Workbook

Sheet Paramètres
B2: Règlage des paramètres de fonctionnement tour de séchage MSD
B4: Produit fabriqué : | C4: Lait 14% | F4: Concentré traité : | H4: =H5/C5% -> 0 | J4: kg / h | K4: =H4/((VLOOKUP(Paramètres!C5,Densité!A2:B286,2))-(VLOOKUP(M4,Densité!D2:E75,2))) -> 0 | L4: ltrs / h | M4: =Nrj!C47 -> 60 | O4: Nb buses | S4: 3
B5: Extrait sec entrant : | C5: 49 | D5: % | F5: Extrait sec traité : | H5: =H6*C6/100 -> 0 | J5: kg / h | O5: P | S5: =L7 -> 220 | T5: bars
B6: Extrait sec poudre : | C6: 96.2 | D6: % | F6: Poudre produite : | H6: =H32*((C5/(C6-C5))) -> 0 | J6: kg / h | O6: f | S6: 0.9
B7: Buse | C7: 40 | D7: Pointeau | F7: 640 | H7: Homo. | J7: 60/20 | K7: P. buses | L7: 220 | O7: A | S7: =((K4/1000)/((SQRT(S5))*S6*S4))*1000 -> 0
O8: Débit buse au prod | S8: =3150/3 -> 1050
B9: Paramètres | C9: T°c | D9: Volume | F9: Poids | G9: W | J9: Enthalpie | O9: Débit buse à l'eau | S9: =IF(S11=0,0,(S8)/(1/S11)) -> 0
D11: m3/kgas | E11: total | F11: kg as | G11: kg/kgas | H11: total | J11: kj/kgas | K11: kcal/kgas | L11: total kj | M11: total kcal | O11: Densité | S11: =IF(H4=0,0,H4/K4) -> 0
B14: Caractéristiques de l'air | O14: Pression 2 | S14: 180
B15: ambiant entrée bâtiment | C15: 20 | D15: =((22.41/273)*(C15+273))*((1/29)+((1/18)*G15)) -> 0.8387244354 | E15: =D15*F15 -> 35253.22774 | F15: =F52+F57+F59 -> 42031.95502 | G15: 0.007 | H15: =F15*G15 -> 294.2236852 | J15: =(((1.005+(1.88*G15))*C15)+(2487*G15)) -> 37.7722 | K15: =J15/4.1855 -> 9.024537092 | L15: =F15*J15 -> 1587639.411 | M15: =L15/4.1855 -> 379318.9372 | O15: Débit 2 | S15: =S9*S6*SQRT(S14/S5) -> 0
B18: Air amont avant chauffage | C18: =IF(Nrj!C10="non",C15+5,IF(C21<80,C15+5,Nrj!C14)) -> 25 | D18: =((22.41/273)*(C18+273))*((1/29)+((1/18)*G18)) -> 0.8530371391 | E18: =D18*F18 -> 23032.00275 | F18: 27000 | G18: =G15 -> 0.007 | H18: =F18*G18 -> 189 | J18: =(((1.005+(1.88*G18))*C18)+(2487*G18)) -> 42.863 | K18: =J18/4.1855 -> 10.24083144 | L18: =F18*J18 -> 1157301 | M18: =L18/4.1855 -> 276502.4489 | P18: 2 buses | S18: =S15*2 -> 0
B19: Air amont sortie batterie vapeur | C19: =IF(C21<140,C21,140) -> 71 | D19: =((22.41/273)*(C19+273))*((1/29)+((1/18)*G19)) -> 0.9847140129 | E19: =D19*F19 -> 26587.27835 | F19: =F18 -> 27000 | G19: =G15 -> 0.007 | H19: =F19*G19 -> 189 | J19: =(((1.005+(1.88*G19))*C19)+(2487*G19)) -> 89.69836 | K19: =J19/4.1855 -> 21.43073946 | L19: =F19*J19 -> 2421855.72 | M19: =L19/4.1855 -> 578629.9654
B21: Air amont vapeur ou électricité | C21: =Schema!CN29 -> 71 | D21: =((22.41/273)*(C21+273))*((1/29)+((1/18)*G21)) -> 0.9847140129 | E21: =D21*F21 -> 26587.27835 | F21: =F18 -> 27000 | G21: =G15 -> 0.007 | H21: =F21*G21 -> 189 | J21: =(((1.005+(1.88*G21))*C21)+(2487*G21)) -> 89.69836 | K21: =J21/4.1855 -> 21.43073946 | L21: =F21*J21 -> 2421855.72 | M21: =L21/4.1855 -> 578629.9654
B22: Combustion gaz | C22: Start | F22: =F21 -> 27000 | G22: =H22/F22 -> 0 | H22: =0.1875*((M21-M19)/1000) -> 0
B23: Total air amont | C23: =C21 -> 71 | D23: =((22.41/273)*(C23+273))*((1/29)+((1/18)*G23)) -> 0.9847140129 | E23: =D23*F23 -> 26587.27835 | F23: =F21 -> 27000 | G23: =H23/F23 -> 0.007 | H23: =SUM(H21:H22) -> 189 | J23: =(((1.005+(1.88*G23))*C23)+(2487*G23)) -> 89.69836 | K23: =J23/4.1855 -> 21.43073946 | L23: =F23*J23 -> 2421855.72 | M23: =L23/4.1855 -> 578629.9654
B24: Mise en fonction des buses | J24: Buse 1 | K24: Buse 2 | L24: Buse 3
B25: Air amont LS | C25: 90 | D25: =((22.41/273)*(C25+273))*((1/29)+((1/18)*G25)) -> 1.039102287 | E25: =D25*F25 -> 8346.022832 | F25: =C73 -> 8031.955022 | G25: =G15 -> 0.007 | H25: =F25*G25 -> 56.22368516 | J25: =(((1.005+(1.88*G25))*C25)+(2487*G25)) -> 109.0434 | K25: =J25/4.1855 -> 26.05265799 | L25: =F25*J25 -> 875831.6843 | M25: =L25/4.1855 -> 209253.7772 | N25: Simulation mise en fonction des buses
B26: Température sortie LS (t°c poudre) | C26: =IF(C21<150,C25,IF(C21>178,62,C25-(C21-150))) -> 90 | D26: =((22.41/273)*(C26+273))*((1/29)+((1/18)*G26)) -> 1.039102287 | E26: =D26*F26 -> 8346.022832 | F26: =F25 -> 8031.955022 | G26: =(J26-(1.005*C26))/(1.88*C26+2487) -> 0.007 | H26: =F26*G26 -> 56.22368516 | J26: =J25 -> 109.0434 | K26: =J26/4.1855 -> 26.05265799 | L26: =F26*J26 -> 875831.6843 | M26: =L26/4.1855 -> 209253.7772
C27: =C26 -> 90 | D27: =((22.41/273)*(C27+273))*((1/29)+((1/18)*G27)) -> 1.039102287 | E27: =D27*F27 -> 8346.022832 | F27: =F25 -> 8031.955022 | G27: =G15 -> 0.007 | H27: =F27*G27 -> 56.22368516 | J27: =(((1.005+(1.88*G27))*C27)+(2487*G27)) -> 109.0434 | K27: =J27/4.1855 -> 26.05265799 | L27: =F27*J27 -> 875831.6843 | M27: =L27/4.1855 -> 209253.7772
R28: PB
B29: Température plaque | C29: =C26+2 -> 92 | R29: Débit évaporatoire une buse | S29: 590
B30: Delta P plaque LS | C30: 220
O31: Valeur incrementation buses en montée
B32: Eau évaporée du concentré | H32: =IF(C21<R33,0,(VLOOKUP(C21,R33:S37,2)))+H33 -> 0 | R32: TE | S32: EE
B33: Dont évaporation dans le lit statique | H33: =IF(C26>=C25,0,(H26-H25)) -> 0 | P33: B1 | R33: 122 | S33: =S29 -> 590
P35: B2 | R35: 182 | S35: =S29*2 -> 1180
B37: Refroidissement | C37: 40 | D37: =((22.41/273)*(C37+273))*((1/29)+((1/18)*G37)) -> 0.8959752501 | E37: =D37*F37 -> 2687.92575 | F37: 3000 | G37: =G15 -> 0.007 | H37: =F37*G37 -> 21 | J37: =(((1.005+(1.88*G37))*C37)+(2487*G37)) -> 58.1354 | K37: =J37/4.1855 -> 13.88971449 | L37: =J37*F37 -> 174406.2 | M37: =K37*F37 -> 41669.14347 | P37: B3 | R37: 238 | S37: =S29*3 -> 1770
B41: Air amont | C41: =($J$41-(2487*$G$41))/((1.005+(1.88*$G$41))) -> 71 | D41: =((22.41/273)*(C41+273))*((1/29)+((1/18)*G41)) -> 0.9847140129 | E41: =D41*F41 -> 26587.27835 | F41: =F21 -> 27000 | G41: =H41/F41 -> 0.007 | H41: =H32+H23-H33 -> 189 | J41: =J23 -> 89.69836 | K41: =K23 -> 21.43073946 | L41: =F41*J41 -> 2421855.72 | M41: =F41*K41 -> 578629.9654
B43: Zone atomisation | C43: =($J$43-(2487*$G$43))/((1.005+(1.88*$G$43))) -> 67.9 | D43: =((22.41/273)*(C43+273))*((1/29)+((1/18)*G43)) -> 0.9758401366 | E43: =D43*F43 -> 29275.2041 | F43: =SUM(F37:F41) -> 30000 | G43: =H43/F43 -> 0.007 | H43: =SUM(H37:H41) -> 210 | J43: =L43/F43 -> 86.542064 | K43: =J43/4.1855 -> 20.67663696 | L43: =L41+L39+L37 -> 2596261.92 | M43: =F43*K43 -> 620299.1088
B47: Lit statique | C47: =($J$47-(2487*$G$47))/((1.005+(1.88*$G$47))) -> 90 | D47: =((22.41/273)*(C47+273))*((1/29)+((1/18)*G47)) -> 1.039102287 | E47: =D47*F47 -> 8346.022832 | F47: =F25 -> 8031.955022 | G47: =H47/F47 -> 0.007 | H47: =H25+H33 -> 56.22368516 | J47: =IF(C25<=72,J27,J26) -> 109.0434 | K47: =J47/4.1855 -> 26.05265799 | L47: =F47*J47 -> 875831.6843 | M47: =F47*K47 -> 209253.7772
B52: Caractéristiques de l'air | C52: =($J$52-(2487*$G$52))/((1.005+(1.88*$G$52))) -> 72.56729112 | D52: =((22.41/273)*(C52+273))*((1/29)+((1/18)*G52)) -> 0.9892004476 | E52: =D52*F52 -> 37621.22693 | F52: =F37+F39+F41+F47+F45 -> 38031.95502 | G52: =H52/F52 -> 0.007 | H52: =H37+H39+H41+H47+H45 -> 266.2236852 | J52: =L52/F52 -> 91.29411313 | K52: =J52/4.1855 -> 21.81199692 | L52: =L37+L39+L41+L47+L45 -> 3472093.604 | M52: =K52*F52 -> 829552.886
B53: sortie chambre
B57: LV 1 | C57: 70 | D57: =((22.41/273)*(C57+273))*((1/29)+((1/18)*G57)) -> 0.9818514721 | E57: =D57*F57 -> 1963.702944 | F57: 2000 | G57: =G15 -> 0.007 | H57: =F57*G57 -> 14 | J57: =(((1.005+(1.88*G57))*C57)+(2487*G57)) -> 88.6802 | K57: =J57/4.1855 -> 21.18748059 | L57: =J57*F57 -> 177360.4 | M57: =K57*F57 -> 42374.96118
B59: LV 2 | C59: 40 | D59: =((22.41/273)*(C59+273))*((1/29)+((1/18)*G59)) -> 0.8959752501 | E59: =D59*F59 -> 1791.9505 | F59: 2000 | G59: =G57 -> 0.007 | H59: =F59*G59 -> 14 | J59: =(((1.005+(1.88*G59))*C59)+(2487*G59)) -> 58.1354 | K59: =J59/4.1855 -> 13.88971449 | L59: =J59*F59 -> 116270.8 | M59: =K59*F59 -> 27779.42898
B61: LV 3 | C61: 35 | D61: =((22.41/273)*(C61+273))*((1/29)+((1/18)*G61)) -> 0.8816625464 | E61: =D61*F61 -> 1763.325093 | F61: 2000 | G61: =G59 -> 0.007 | H61: =F61*G61 -> 14 | J61: =(((1.005+(1.88*G61))*C61)+(2487*G61)) -> 53.0446 | K61: =J61/4.1855 -> 12.67342014 | L61: =J61*F61 -> 106089.2 | M61: =K61*F61 -> 25346.84028
B72: Masse vol. de l'air entrée LS | C72: =1/D25 -> 0.9623691649 | D72: kg/m3
B73: Débit dans le lit statique | C73: =4*138*((C30*C72)^(1/2)) -> 8031.955022
B74: Vitesse m/s | C74: =0.038*(C30/C72)^(1/2) -> 0.57454505
B76: Température de saturation sortie chambre | E76: =VLOOKUP(J52,'Air humide'!$H$2:$K$222,4) -> 28 | F76: °c
B77: Ws | E77: =VLOOKUP(J52,'Air humide'!$A$5:$D$65,4) -> 96700.90015
B78: Driving force | E78: =C52-E76 -> 44.56729112 | F78: °c
B80: Point de rosée | E80: =VLOOKUP(ROUND(G52,4),'Air humide'!$I$2:$K$201,3) -> 8.5 | F80: °c
B81: Pression partielle de vapeur dans l'air sortant | E81: =100000*(G52/(G52+0.6215)) -> 1113.762928 | F81: Pa
B82: Pression partielle de vapeur saturante à | D82: =C52 -> 72.56729112 | E82: =IF(D82<99,611.14*EXP(17.269*(((273.16+D82)-273.16)/((273.16+D82)-35.86))),((D82/100)^4)*100000) -> 34874.93483 | F82: Pa
B83: Humidité relative sortie chambre | E83: =E81/E82% -> 3.193591424 | F83: %
B85: Delta P cyclones principaux | E85: =G107 -> 198.5627364 | F85: mmCE
B90: Impact température de sortie sur humidité poudre :
B92: 1 | C92: = | D92: 0.2
B94: Formule débit cyclones :
B96: P = | C96: L2
C97: d4 r K2
G98: U | H98: calc
B99: L = | C99: débit d'air | G99: =F18 -> 27000 | H99: =G99^2 -> 729000000
B101: d = | C101: diamètre en mètre | G101: 2.5 | H101: =G101^4 -> 39.0625
B103: r = | C103: densité air kg / m3 | G103: =1/D52 -> 1.010917456
B105: K = | C105: constante | G105: 304.9137606 | H105: =G105^2 -> 92972.40142
E107: Résultat (mmCE) : | G107: =H99/(H101*G103*H105) -> 198.5627364

Sheet Nrj
B2: Bilan énergie tour de séchage MSD
C7: T°c | D7: Volume | F7: Poids | G7: W | K7: Enthalpie | N7: Ratios
D9: m3/kgas | E9: total | F9: kg | G9: kg/kgas | H9: total | J9: kj/kgas | K9: kcal/kgas | L9: total kj | M9: total kcal | N9: /kgee | O9: /kg prod
B10: Cogénération | C10: non
B12: Air amont après gaz | C12: =Paramètres!C21 -> 71 | D12: =((22.41/273)*(C12+273))*((1/29)+((1/18)*G12)) -> 0.9847140129 | E12: =D12*F12 -> 26587.27835 | F12: =Paramètres!F21 -> 27000 | G12: =Paramètres!G23 -> 0.007 | H12: =F12*G12 -> 189 | J12: =(((1.005+(1.88*G12))*C12)+(2487*G12)) -> 89.69836 | K12: =J12/4.1855 -> 21.43073946 | L12: =F12*J12 -> 2421855.72 | M12: =L12/4.1855 -> 578629.9654 | P12: =M12-M13 -> 0
B13: Air amont après vapeur | C13: =Paramètres!C19 -> 71 | D13: =((22.41/273)*(C13+273))*((1/29)+((1/18)*G13)) -> 0.9847140129 | E13: =D13*F13 -> 26587.27835 | F13: =Paramètres!F22 -> 27000 | G13: =Paramètres!G19 -> 0.007 | H13: =F13*G13 -> 189 | J13: =(((1.005+(1.88*G13))*C13)+(2487*G13)) -> 89.69836 | K13: =J13/4.1855 -> 21.43073946 | L13: =F13*J13 -> 2421855.72 | M13: =L13/4.1855 -> 578629.9654
B14: Air amont après filtre | C14: =IF(C10="oui",45,Paramètres!C18) -> 25 | D14: =((22.41/273)*(C14+273))*((1/29)+((1/18)*G14)) -> 0.8530371391 | E14: =D14*F14 -> 23032.00275 | F14: =F12 -> 27000 | G14: =Paramètres!G18 -> 0.007 | H14: =F14*G14 -> 189 | J14: =(((1.005+(1.88*G14))*C14)+(2487*G14)) -> 42.863 | K14: =J14/4.1855 -> 10.24083144 | L14: =F14*J14 -> 1157301 | M14: =L14/4.1855 -> 276502.4489
B16: Energie consommée | L16: =L12-L14-L15 -> 1264554.72 | M16: =M12-M14 -> 302127.5164
B18: Air amont LS | C18: =Paramètres!C25 -> 90 | D18: =((22.41/273)*(C18+273))*((1/29)+((1/18)*G18)) -> 1.039102287 | E18: =D18*F18 -> 8346.022832 | F18: =Paramètres!F47 -> 8031.955022 | G18: =G14 -> 0.007 | H18: =F18*G18 -> 56.22368516 | J18: =(((1.005+(1.88*G18))*C18)+(2487*G18)) -> 109.0434 | K18: =J18/4.1855 -> 26.05265799 | L18: =F18*J18 -> 875831.6843 | M18: =L18/4.1855 -> 209253.7772
B19: Air amont LS | C19: =Paramètres!C18 -> 25 | D19: =((22.41/273)*(C19+273))*((1/29)+((1/18)*G19)) -> 0.8530371391 | E19: =D19*F19 -> 6851.555933 | F19: =F18 -> 8031.955022 | G19: =G14 -> 0.007 | H19: =F19*G19 -> 56.22368516 | J19: =(((1.005+(1.88*G19))*C19)+(2487*G19)) -> 42.863 | K19: =J19/4.1855 -> 10.24083144 | L19: =F19*J19 -> 344273.6881 | M19: =L19/4.1855 -> 82253.89753
B20: Energie consommée | L20: =L18-L19 -> 531557.9962 | M20: =M18-M19 -> 126999.8796
B26: Répartition fines
B27: Répartition fines
B28: Energie consommée
B30: Surpresseurs fines
B31: Surpresseurs fines
B32: Energie consommée
B34: LV 1 | C34: =Paramètres!C57 -> 70 | D34: =((22.41/273)*(C34+273))*((1/29)+((1/18)*G34)) -> 0.9818514721 | E34: =D34*F34 -> 1963.702944 | F34: =Paramètres!F57 -> 2000 | G34: =G14 -> 0.007 | H34: =F34*G34 -> 14 | J34: =(((1.005+(1.88*G34))*C34)+(2487*G34)) -> 88.6802 | K34: =J34/4.1855 -> 21.18748059 | L34: =J34*F34 -> 177360.4 | M34: =K34*F34 -> 42374.96118
B35: LV 1 | C35: =Paramètres!C18 -> 25 | D35: =((22.41/273)*(C35+273))*((1/29)+((1/18)*G35)) -> 0.8530371391 | E35: =D35*F35 -> 1706.074278 | F35: =F34 -> 2000 | G35: =G14 -> 0.007 | H35: =F35*G35 -> 14 | J35: =(((1.005+(1.88*G35))*C35)+(2487*G35)) -> 42.863 | K35: =J35/4.1855 -> 10.24083144 | L35: =J35*F35 -> 85726 | M35: =K35*F35 -> 20481.66288
B36: Energie consommée | L36: =L34-L35 -> 91634.4 | M36: =M34-M35 -> 21893.29829
B38: LV 2 | C38: =Paramètres!C59 -> 40 | D38: =((22.41/273)*(C38+273))*((1/29)+((1/18)*G38)) -> 0.8959752501 | E38: =D38*F38 -> 1791.9505 | F38: =Paramètres!F59 -> 2000 | G38: =G14 -> 0.007 | H38: =F38*G38 -> 14 | J38: =(((1.005+(1.88*G38))*C38)+(2487*G38)) -> 58.1354 | K38: =J38/4.1855 -> 13.88971449 | L38: =J38*F38 -> 116270.8 | M38: =K38*F38 -> 27779.42898
B39: LV 2 | C39: =C35 -> 25 | D39: =((22.41/273)*(C39+273))*((1/29)+((1/18)*G39)) -> 0.8530371391 | E39: =D39*F39 -> 1706.074278 | F39: =F38 -> 2000 | G39: =G38 -> 0.007 | H39: =F39*G39 -> 14 | J39: =(((1.005+(1.88*G39))*C39)+(2487*G39)) -> 42.863 | K39: =J39/4.1855 -> 10.24083144 | L39: =J39*F39 -> 85726 | M39: =K39*F39 -> 20481.66288
B40: Energie consommée | L40: =L38-L39 -> 30544.8 | M40: =M38-M39 -> 7297.766097
B42: LV 3 | C42: =Paramètres!C61 -> 35 | D42: =((22.41/273)*(C42+273))*((1/29)+((1/18)*G42)) -> 0.8816625464 | E42: =D42*F42 -> 1763.325093 | F42: =Paramètres!F61 -> 2000 | G42: =G14 -> 0.007 | H42: =F42*G42 -> 14 | J42: =(((1.005+(1.88*G42))*C42)+(2487*G42)) -> 53.0446 | K42: =J42/4.1855 -> 12.67342014 | L42: =J42*F42 -> 106089.2 | M42: =K42*F42 -> 25346.84028
B43: LV 3 | C43: =C35 -> 25 | D43: =((22.41/273)*(C43+273))*((1/29)+((1/18)*G43)) -> 0.8530371391 | E43: =D43*F43 -> 1706.074278 | F43: =F42 -> 2000 | G43: =G42 -> 0.007 | H43: =F43*G43 -> 14 | J43: =(((1.005+(1.88*G43))*C43)+(2487*G43)) -> 42.863 | K43: =J43/4.1855 -> 10.24083144 | L43: =J43*F43 -> 85726 | M43: =K43*F43 -> 20481.66288
B44: Energie consommée | L44: =L42-L43 -> 20363.2 | M44: =M42-M43 -> 4865.177398
B46: Réchauffage concentré de | C46: 50 | F46: =+Paramètres!H4 -> 0 | J46: 0.8 | K46: Kcal/kg conc | M46: =C46*$F$46*$J$46 -> 0
B47: à | C47: 60 | M47: =C47*$F$46*$J$46 -> 0
M48: =M47-M46 -> 0
B50: Pertes | C50: 5 | M50: =(M16+M20+M36+M40+M44)*C50% -> 23159.18189
B51: Réchauffage concentré | M51: =((Paramètres!H4*0.8)*(Paramètres!E76-Paramètres!M4)) -> 0
B54: Total énergie consommée | C54: kcal | L54: =L16+L20+L24+L28+L32+L36+L40+L44+L50 -> 1938655.116 | M54: =M16+M20+M24+M28+M32+M36+M40+M44+M50+M51+M48 -> 486342.8197 | N54: =M54/Paramètres!$H$32 ->  | O54: =M54/Paramètres!H6 -> 
C55: kwh | M55: =M54/860 -> 565.5149067 | N55: =M55/Paramètres!$H$32 ->  | O55: =M55/Paramètres!H6 -> 
B57: Energie vapeur | C57: kcal | M57: =M20+M24+M28+M32+M36+M40+M44+M48+(M13-M14)+M50+M51 -> 486342.8197 | N57: =M57/Paramètres!$H$32 ->  | O57: =M57/Paramètres!H6 -> 
B59: Energie gaz direct | C59: kcal | M59: =M54-M57 -> 0 | N59: =M59/Paramètres!$H$32 ->  | O59: =M59/Paramètres!H6 -> 
C60: kwh | M60: =M59/860 -> 0 | N60: =M60/Paramètres!$H$32 ->  | O60: =M60/Paramètres!H6 -> 
B62: Conso vapeur | C62: kg | M62: =M57/585 -> 831.3552474 | N62: =M62/Paramètres!$H$32 ->  | O62: =M62/Paramètres!H6 ->  | P62: =P64*P71/P70 -> 9700 | R62: Pcs
C64: Nm3 | M64: =(M57/P64)/P65 -> 65.61559899 | P64: 8720 | Q64: kcal / m3 | R64: Pci
P65: 0.85 | Q65: R chauffe
B66: Conso Gaz entrée tour | C66: Nm3 | M66: =(M59/P62)*P66 -> 0 | N66: =M66/Paramètres!$H$32 ->  | O66: =M66/Paramètres!H6 ->  | P66: 1 | Q66: R chauffe(pci)
B69: Total gaz | C69: Nm3 | M69: =M64+M66 -> 65.61559899 | N69: =M69/Paramètres!$H$32 ->  | O69: =M69/Paramètres!$H$6 -> 
C70: kwh pci | M70: =M69*P70 -> 665.3116549 | P70: =8720/860 -> 10.13953488 | Q70: Kwh / Nm3
C71: kwh pcs | M71: =M69*P71 -> 740.0829189 | N71: =M71/Paramètres!$H$32 ->  | O71: =M71/Paramètres!$H$6 ->  | P71: =9700/860 -> 11.27906977 | Q71: Kwh / Nm3
B73: Kwh motrice | C73: kwh | M73: =215+M94+M99 -> 215 | N73: =M73/Paramètres!$H$32 ->  | O73: =M73/Paramètres!$H$6 -> 
B75: Volume d'air ambiant | C75: m3 | E75: =E14+E19+E23+E27+E31+E35+E39+E43+E47 -> 35001.78152
B76: Poids d'air ambiant | C76: kg | F76: =SUM(F12:F47)/2-F15 -> 54531.95502
M80: Prix | N80: Coût t ee | O80: Coût t prod
K81: Gaz | M81: 0.052 | N81: =N71*M81*1000 ->  | O81: =O71*M81*1000 ->  | Q81: Coûts NRJ en 2016
K82: Elec | M82: 0.16 | N82: =N73*M82*1000 ->  | O82: =O73*M82*1000 ->  | Q82: Coût t ee | R82: Coût t prod
K83: Coût | N83: =SUM(N81:N82) ->  | O83: =SUM(O81:O82) ->  | Q83: 57.16063192 | R83: 55.06085361
Q84: =(N83-Q83)/Q83% ->  | R84: % d'augmentation depuis 2021
B87: Froid vibro fluidiseur | C87: T°c | D87: Volume | F87: Poids | G87: W | M87: Enthalpie
M88: kcal
B89: TP avant refroidissement | C89: =Paramètres!C18 -> 25 | D89: =((22.41/273)*(C89+273))*((1/29)+((1/18)*G89)) -> 0.8530371391 | E89: =D89*F89 -> 1706.074278 | F89: =F42 -> 2000 | G89: =G42 -> 0.007 | H89: =F89*G89 -> 14 | J89: =(((1.005+(1.88*G89))*C89)+(2487*G89)) -> 42.863 | K89: =J89/4.1855 -> 10.24083144 | L89: =J89*F89 -> 85726 | M89: =K89*F89 -> 20481.66288
B90: TP aprèst refroidissement | C90: =C42 -> 35 | D90: =((22.41/273)*(C90+273))*((1/29)+((1/18)*G90)) -> 0.8816625464 | E90: =D90*F90 -> 1763.325093 | F90: =F89 -> 2000 | G90: 0.007 | H90: =F90*G90 -> 14 | J90: =(((1.005+(1.88*G90))*C90)+(2487*G90)) -> 53.0446 | K90: =J90/4.1855 -> 12.67342014 | L90: =J90*F90 -> 106089.2 | M90: =K90*F90 -> 25346.84028
B92: Puissance à fournir | C92: Kcal | M92: =M89-M90 -> -4865.177398
B94: Electricité | C94: Kwh | M94: =IF(M92/2250<=0,0,M92/2250) -> 0
B97: Homogénéisateur | C97: Kwh nominal | M97: 80
C99: Kwh consommé | M99: =(M97*(Paramètres!K4/3200))*0.85 -> 0

Sheet Schema
A1: Tour 1 MSD | BZ1: Observations
AM2: Evaporation
AM3: Kg / h : | AP3: =Paramètres!H32 -> 0 | BZ3: le : | CB3: =NOW() -> 2023-08-03T11:37:48.380
B4: Concentré | H4: ES % | J4: =Paramètres!C5 -> 49 | U4: T°C : | V4: =Paramètres!C37 -> 40
B5: PB : | C5: =Paramètres!H4 -> 0 | F5: kg | H5: PHP : | J5: 220 | L5: b | AD5: Air sortant | BZ5: Production : | CF5: =Paramètres!C4 -> Lait 14%
B6: MS : | C6: =Paramètres!H5 -> 0 | F6: kg | H6: PH1 : | J6: 100 | L6: b | AD6: T°C : | AG6: =Paramètres!C52 -> 72.56729112
B7: T°C : | C7: =Paramètres!M4 -> 60 | H7: PH2 : | J7: 60 | L7: b | AD7: HR % : | AG7: =Paramètres!E83 -> 3.193591424 | AU7: Delta p : | AY7: =Paramètres!E85 -> 198.5627364 | BZ7: Heures fab. : | CJ7: 20
BZ8: Mise en chauffe : | CJ8: 1
BZ9: Temps de nettoyage : | CJ9: 3
BZ10: HF / HM : | CJ10: =CJ7/(CJ7+CJ8) -> 0.9523809524
BZ12: Consommations d'énergie :
B13: Air filtres amont | J13: Air amont | BZ13: Vapeur kg : | CJ13: =Nrj!M62 -> 831.3552474
B14: T°C | E14: =Paramètres!C18 -> 25 | J14: T°C cogé : | M14: =Paramètres!C18 -> 25 | BM14: Adjonction | BZ14: Gaz brul. m3 : | CJ14: =Nrj!M66 -> 0
J15: T°C Vap : | L15: =Paramètres!C19 -> 71 | BM15: Qualité : | BZ15: Tot Gaz m3 : | CJ15: =Nrj!M69 -> 65.61559899
J16: T°C Gaz : | L16: =Paramètres!C23 -> 71 | BM16: Kg / h : | BZ16: Kwh élec : | CJ16: =Nrj!M73 -> 215
J17: w 1 : | M17: =Paramètres!G21 -> 0.007
J18: w 2 : | M18: =Paramètres!G23 -> 0.007 | BM18: Réincorporation | BZ18: Ratios (HM comprises) :
BM19: Qualité : | BZ19: Vapeur t / t de poudre : | CJ19: =Nrj!O62 -> 
BM20: Poids kg : | BZ20: Gaz kw pcs / t de poudre : | CJ20: =(Nrj!O71*1000)/CJ10 -> 
L21: Entrée LS | BZ21: Kwh(élec) / t de poudre : | CJ21: =(Nrj!O73*1000)/CJ10 -> 
L22: T°c : | N22: =IF(L15<75,70,Paramètres!C25) -> 70
BZ23: Simulation | CN23: =Paramètres!R33 -> 122 | CQ23: Ouverture B1
CN25: =Paramètres!R35 -> 182 | CQ25: Ouverture B2
S26: Lit statique | BN26: Recyclage fines
S27: Delta P LS : | X27: =Paramètres!C30 -> 220 | BN27: Retour vibro | CN27: =Paramètres!R37 -> 238 | CQ27: Ouverture B3
S28: H LS (m) : | X28: =X27*0.3/100 -> 0.66 | BN28: Retour chambre
S29: T°C PL : | X29: =IF(L15<75,70,Paramètres!C29) -> 70 | BN29: x = oui | CN29: 71 | CQ29: Compteur = température d'entrée générée avec 2 macros Marche - Arrêt
S30: T°C Prd : | X30: =X29-2 -> 68
CN31: Possibilité de saisir une valeur dans le compteur pour vérifier l'évolution du système.
CN33: 71°C = tour à l'arrêt
CN34: 244°C = tour en marche
B37: Lécithine | P37: T°C : | S37: =IF(L15<75,35,Paramètres!C57) -> 35 | BI37: Production
B38: % : | G38: 0.5 | BI38: Débit kg / h : | BP38: =Paramètres!H6 -> 0
B39: Débit kg / h : | G39: =IF(G41=0,0,BP38*G38%) -> 0 | BI39: Extrait sec % : | BP39: =IF(BP38=0,0,Paramètres!C6) -> 0
B40: T°C : | G40: 50
B41: Adjonction :
B42: x = oui | AA42: T°C : | AD42: =Paramètres!C59 -> 40
T45: T°C : | W45: =Paramètres!C61 -> 35
BP47: x = oui
A48: NB : Quantités ramenées à l'heure de production

Sheet Air humide (hidden)
A1: T°c humide | B1: T°c de rosée | C1: Pv sat.Pe en Pa | D1: P air sec Pa | E1: ws gr/ kg as | G1: T°c humide | H1: H kj / kg | I1: ws kg/ kg as | J1: v m3 / kg | K1: T°c humide | N1: P atm Pa
A2: 0 | B2: =A2-0.1 -> -0.1 | C2: =611.14*EXP(17.269*(((273.16+A2)-273.16)/((273.16+A2)-35.86))) -> 611.14 | D2: =$N$2-C2 -> 100713.86 | E2: =I2*1000 -> 3.766395964 | G2: 0 | H2: =(((1.005+(1.88*(E2/1000)))*A2)+(2487*(E2/1000))) -> 9.367026763 | I2: =(18/29)*(C2/($N$2-C2)) -> 0.003766395964 | J2: =((22.41/273)*(A2+273))*((1/28.96)+((1/18.1)*I2)) -> 0.7784892228 | K2: 0 | N2: 101325
A3: 0.5 | B3: 0.4 | C3: =611.14*EXP(17.269*(((273.16+A3)-273.16)/((273.16+A3)-35.86))) -> 633.7382345 | D3: =$N$2-C3 -> 100691.2618 | E3: =I3*1000 -> 3.906543223 | G3: 0.5 | H3: =(((1.005+(1.88*(E3/1000)))*A3)+(2487*(E3/1000))) -> 10.22174515 | I3: =(18/29)*(C3/($N$2-C3)) -> 0.003906543223 | J3: =((22.41/273)*(A3+273))*((1/28.96)+((1/18.1)*I3)) -> 0.7800888644 | K3: 0.5
A4: 1 | B4: 0.9 | C4: =611.14*EXP(17.269*(((273.16+A4)-273.16)/((273.16+A4)-35.86))) -> 657.0719619 | D4: 100667.928 | E4: 4.051317807 | G4: 1 | H4: 11.08824386 | I4: =(18/29)*(C4/($N$2-C4)) -> 0.004051317807 | J4: 0.7816948918 | K4: 1
A5: 1.5 | B5: 1.4 | C5: 681.1616732 | D5: 100643.8383 | E5: 4.200853337 | G5: 1.5 | H5: 11.96686866 | I5: 0.004200853337 | J5: 0.7833075028 | K5: 1.5
A6: 2 | B6: 1.9 | C6: 706.0283265 | D6: 100618.9717 | E6: 4.355286794 | G6: 2 | H6: 12.85797413 | I6: 0.004355286794 | J6: 0.7849269006 | K6: 2
A7: 2.5 | B7: 2.4 | C7: 731.6933546 | D7: 100593.3066 | E7: 4.514758597 | G7: 2.5 | H7: 13.761924 | I7: 0.004514758597 | J7: 0.786553294 | K7: 2.5
A8: 3 | B8: 2.9 | C8: 758.178673 | D8: 100566.8213 | E8: 4.679412682 | G8: 3 | H8: 14.67909123 | I8: 0.004679412682 | J8: 0.7881868974 | K8: 3
A9: 3.5 | B9: 3.4 | C9: 785.5066884 | D9: 100539.4933 | E9: 4.849396585 | G9: 3.5 | H9: 15.60985834 | I9: 0.004849396585 | J9: 0.7898279312 | K9: 3.5
A10: 4 | B10: 3.9 | C10: 813.7003065 | D10: 100511.2997 | E10: 5.024861525 | G10: 4 | H10: 16.55461757 | I10: 0.005024861525 | J10: 0.7914766215 | K10: 4
A11: 4.5 | B11: 4.4 | C11: 842.7829404 | D11: 100482.2171 | E11: 5.205962488 | G11: 4.5 | H11: 17.51377115 | I11: 0.005205962488 | J11: 0.7931332006 | K11: 4.5
A12: 5 | B12: 4.9 | C12: 872.7785192 | D12: 100452.2215 | E12: 5.392858317 | G12: 5 | H12: 18.4877315 | I12: 0.005392858317 | J12: 0.7947979073 | K12: 5
A13: 5.5 | B13: 5.4 | C13: 903.7114958 | D13: 100421.2885 | E13: 5.585711805 | G13: 5.5 | H13: 19.47692152 | I13: 0.005585711805 | J13: 0.7964709865 | K13: 5.5
A14: 6 | B14: 5.9 | C14: 935.6068561 | D14: 100389.3931 | E14: 5.784689783 | G14: 6 | H14: 20.48177479 | I14: 0.005784689783 | J14: 0.7981526899 | K14: 6
A15: 6.5 | B15: 6.4 | C15: 968.4901269 | D15: 100356.5099 | E15: 5.989963219 | G15: 6.5 | H15: 21.50273588 | I15: 0.005989963219 | J15: 0.7998432758 | K15: 6.5
A16: 7 | B16: 6.9 | C16: 1002.387385 | D16: 100322.6126 | E16: 6.201707316 | G16: 7 | H16: 22.54026056 | I16: 0.006201707316 | J16: 0.8015430095 | K16: 7
A17: 7.5 | B17: 7.4 | C17: 1037.325267 | D17: 100287.6747 | E17: 6.420101611 | G17: 7.5 | H17: 23.59481614 | I17: 0.006420101611 | J17: 0.8032521636 | K17: 7.5
A18: 8 | B18: 7.9 | C18: 1073.330974 | D18: 100251.669 | E18: 6.645330085 | G18: 8 | H18: 24.66688169 | I18: 0.006645330085 | J18: 0.8049710176 | K18: 8
A19: 8.5 | B19: 8.4 | C19: 1110.432287 | D19: 100214.5677 | E19: 6.877581262 | G19: 8.5 | H19: 25.75694835 | I19: 0.006877581262 | J19: 0.8066998587 | K19: 8.5
A20: 9 | B20: 8.9 | C20: 1148.657569 | D20: 100176.3424 | E20: 7.117048327 | G20: 9 | H20: 26.86551965 | I20: 0.007117048327 | J20: 0.8084389818 | K20: 9
A21: 9.5 | B21: 9.4 | C21: 1188.035779 | D21: 100136.9642 | E21: 7.363929232 | G21: 9.5 | H21: 27.99311178 | I21: 0.007363929232 | J21: 0.8101886897 | K21: 9.5
A22: 10 | B22: 9.9 | C22: 1228.59648 | D22: 100096.4035 | E22: 7.618426821 | G22: 10 | H22: 29.14025393 | I22: 0.007618426821 | J22: 0.811949293 | K22: 10
A23: 10.5 | B23: 10.4 | C23: 1270.369845 | D23: 100054.6302 | E23: 7.880748945 | G23: 10.5 | H23: 30.30748861 | I23: 0.007880748945 | J23: 0.8137211108 | K23: 10.5
A24: 11 | B24: 10.9 | C24: 1313.386672 | D24: 100011.6133 | E24: 8.151108588 | G24: 11 | H24: 31.49537198 | I24: 0.008151108588 | J24: 0.8155044708 | K24: 11
A25: 11.5 | B25: 11.4 | C25: 1357.678387 | D25: 99967.32161 | E25: 8.429723994 | G25: 11.5 | H25: 32.70447421 | I25: 0.008429723994 | J25: 0.8172997091 | K25: 11.5
A26: 12 | B26: 11.9 | C26: 1403.277058 | D26: 99921.72294 | E26: 8.716818802 | G26: 12 | H26: 33.93537979 | I26: 0.008716818802 | J26: 0.819107171 | K26: 12
A27: 12.5 | B27: 12.4 | C27: 1450.215404 | D27: 99874.7846 | E27: 9.012622179 | G27: 12.5 | H27: 35.18868798 | I27: 0.009012622179 | J27: 0.8209272109 | K27: 12.5
A28: 13 | B28: 12.9 | C28: 1498.5268 | D28: 99826.4732 | E28: 9.317368963 | G28: 13 | H28: 36.46501311 | I28: 0.009317368963 | J28: 0.8227601927 | K28: 13
A29: 13.5 | B29: 13.4 | C29: 1548.245295 | D29: 99776.7547 | E29: 9.631299806 | G29: 13.5 | H29: 37.76498501 | I29: 0.009631299806 | J29: 0.8246064899 | K29: 13.5
A30: 14 | B30: 13.9 | C30: 1599.405612 | D30: 99725.59439 | E30: 9.954661329 | G30: 14 | H30: 39.08924941 | I30: 0.009954661329 | J30: 0.8264664859 | K30: 14
A31: 14.5 | B31: 14.4 | C31: 1652.043165 | D31: 99672.95683 | E31: 10.28770627 | G31: 14.5 | H31: 40.43846836 | I31: 0.01028770627 | J31: 0.8283405744 | K31: 14.5
A32: 15 | B32: 14.9 | C32: 1706.194067 | D32: 99618.80593 | E32: 10.63069364 | G32: 15 | H32: 41.81332065 | I32: 0.01063069364 | J32: 0.8302291598 | K32: 15
A33: 15.5 | B33: 15.4 | C33: 1761.895135 | D33: 99563.10486 | E33: 10.98388892 | G33: 15.5 | H33: 43.21450226 | I33: 0.01098388892 | J33: 0.8321326568 | K33: 15.5
A34: 16 | B34: 15.9 | C34: 1819.18391 | D34: 99505.81609 | E34: 11.34756417 | G34: 16 | H34: 44.64272683 | I34: 0.01134756417 | J34: 0.8340514917 | K34: 16
A35: 16.5 | B35: 16.4 | C35: 1878.098656 | D35: 99446.90134 | E35: 11.72199829 | G35: 16.5 | H35: 46.09872612 | I35: 0.01172199829 | J35: 0.8359861018 | K35: 16.5
A36: 17 | B36: 16.9 | C36: 1938.678378 | D36: 99386.32162 | E36: 12.10747711 | G36: 17 | H36: 47.58325053 | I36: 0.01210747711 | J36: 0.8379369362 | K36: 17
A37: 17.5 | B37: 17.4 | C37: 2000.962828 | D37: 99324.03717 | E37: 12.50429366 | G37: 17.5 | H37: 49.09706958 | I37: 0.01250429366 | J37: 0.8399044562 | K37: 17.5
A38: 18 | B38: 17.9 | C38: 2064.992518 | D38: 99260.00748 | E38: 12.91274831 | G38: 18 | H38: 50.64097245 | I38: 0.01291274831 | J38: 0.8418891354 | K38: 18
A39: 18.5 | B39: 18.4 | C39: 2130.808727 | D39: 99194.19127 | E39: 13.33314902 | G39: 18.5 | H39: 52.21576854 | I39: 0.01333314902 | J39: 0.8438914599 | K39: 18.5
A40: 19 | B40: 18.9 | C40: 2198.453515 | D40: 99126.54649 | E40: 13.7658115 | G40: 19 | H40: 53.822288 | I40: 0.0137658115 | J40: 0.8459119293 | K40: 19
A41: 19.5 | B41: 19.4 | C41: 2267.969729 | D41: 99057.03027 | E41: 14.21105948 | G41: 19.5 | H41: 55.46138237 | I41: 0.01421105948 | J41: 0.8479510562 | K41: 19.5
A42: 20 | B42: 19.9 | C42: 2339.401019 | D42: 98985.59898 | E42: 14.66922488 | G42: 20 | H42: 57.13392514 | I42: 0.01466922488 | J42: 0.8500093675 | K42: 20
A43: 20.5 | B43: 20.4 | C43: 2412.791843 | D43: 98912.20816 | E43: 15.14064811 | G43: 20.5 | H43: 58.84081242 | I43: 0.01514064811 | J43: 0.8520874041 | K43: 20.5
A44: 21 | B44: 20.9 | C44: 2488.187482 | D44: 98836.81252 | E44: 15.62567823 | G44: 21 | H44: 60.58296354 | I44: 0.01562567823 | J44: 0.8541857216 | K44: 21
A45: 21.5 | B45: 21.4 | C45: 2565.634046 | D45: 98759.36595 | E45: 16.1246733 | G45: 21.5 | H45: 62.3613218 | I45: 0.0161246733 | J45: 0.8563048908 | K45: 21.5
A46: 22 | B46: 21.9 | C46: 2645.178492 | D46: 98679.82151 | E46: 16.63800057 | G46: 22 | H46: 64.17685511 | I46: 0.01663800057 | J46: 0.8584454981 | K46: 22
A47: 22.5 | B47: 22.4 | C47: 2726.868626 | D47: 98598.13137 | E47: 17.16603675 | G47: 22.5 | H47: 66.03055676 | I47: 0.01716603675 | J47: 0.8606081459 | K47: 22.5
A48: 23 | B48: 22.9 | C48: 2810.75312 | D48: 98514.24688 | E48: 17.70916837 | G48: 23 | H48: 67.92344617 | I48: 0.01770916837 | J48: 0.862793453 | K48: 23
A49: 23.5 | B49: 23.4 | C49: 2896.881519 | D49: 98428.11848 | E49: 18.26779196 | G49: 23.5 | H49: 69.85656965 | I49: 0.01826779196 | J49: 0.8650020553 | K49: 23.5
A50: 24 | B50: 23.9 | C50: 2985.304258 | D50: 98339.69574 | E50: 18.84231445 | G50: 24 | H50: 71.83100127 | I50: 0.01884231445 | J50: 0.8672346065 | K50: 24
A51: 24.5 | B51: 24.4 | C51: 3076.072664 | D51: 98248.92734 | E51: 19.43315345 | G51: 24.5 | H51: 73.84784367 | I51: 0.01943315345 | J51: 0.8694917781 | K51: 24.5
A52: 25 | B52: 24.9 | C52: 3169.238975 | D52: 98155.76103 | E52: 20.04073756 | G52: 25 | H52: 75.90822897 | I52: 0.02004073756 | J52: 0.8717742604 | K52: 25
A53: 25.5 | B53: 25.4 | C53: 3264.856346 | D53: 98060.14365 | E53: 20.66550674 | G53: 25.5 | H53: 78.01331966 | I53: 0.02066550674 | J53: 0.8740827628 | K53: 25.5
A54: 26 | B54: 25.9 | C54: 3362.978865 | D54: 97962.02114 | E54: 21.30791268 | G54: 26 | H54: 80.1643096 | I54: 0.02130791268 | J54: 0.8764180148 | K54: 26
A55: 26.5 | B55: 26.4 | C55: 3463.661557 | D55: 97861.33844 | E55: 21.96841911 | G55: 26.5 | H55: 82.36242497 | I55: 0.02196841911 | J55: 0.8787807663 | K55: 26.5
A56: 27 | B56: 26.9 | C56: 3566.960404 | D56: 97758.0396 | E56: 22.64750227 | G56: 27 | H56: 84.60892536 | I56: 0.02264750227 | J56: 0.8811717883 | K56: 27
A57: 27.5 | B57: 27.4 | C57: 3672.93235 | D57: 97652.06765 | E57: 23.34565123 | G57: 27.5 | H57: 86.90510479 | I57: 0.02334565123 | J57: 0.8835918739 | K57: 27.5
A58: 28 | B58: 27.9 | C58: 3781.635313 | D58: 97543.36469 | E58: 24.06336839 | G58: 28 | H58: 89.25229289 | I58: 0.02406336839 | J58: 0.8860418383 | K58: 28
A59: 28.5 | B59: 28.4 | C59: 3893.128199 | D59: 97431.8718 | E59: 24.80116983 | G59: 28.5 | H59: 91.65185604 | I59: 0.02480116983 | J59: 0.8885225206 | K59: 28.5
A60: 29 | B60: 28.9 | C60: 4007.470912 | D60: 97317.52909 | E60: 25.55958584 | G60: 29 | H60: 94.10519861 | I60: 0.02555958584 | J60: 0.8910347836 | K60: 29
A61: 29.5 | B61: 29.4 | C61: 4124.724366 | D61: 97200.27563 | E61: 26.33916137 | G61: 29.5 | H61: 96.61376421 | I61: 0.02633916137 | J61: 0.8935795152 | K61: 29.5
A62: 30 | B62: 29.9 | C62: 4244.950496 | D62: 97080.0495 | E62: 27.14045649 | G62: 30 | H62: 99.17903704 | I62: 0.02714045649 | J62: 0.8961576289 | K62: 30
A63: 30.5 | B63: 30.4 | C63: 4368.212269 | D63: 96956.78773 | E63: 27.96404698 | G63: 30.5 | H63: 101.8025433 | I63: 0.02796404698 | J63: 0.8987700651 | K63: 30.5
A64: 31 | B64: 30.9 | C64: 4494.573696 | D64: 96830.4263 | E64: 28.81052479 | G64: 31 | H64: 104.4858525 | I64: 0.02881052479 | J64: 0.9014177916 | K64: 31
A65: 31.5 | B65: 31.4 | C65: 4624.099845 | D65: 96700.90015 | E65: 29.68049867 | G65: 31.5 | H65: 107.2305793 | I65: 0.02968049867 | J65: 0.9041018047 | K65: 31.5
A66: 32 | B66: =A66-0.1 -> 31.9 | C66: 4756.856853 | D66: =$N$2-C66 -> 96568.14315 | E66: 30.57459472 | G66: 32 | H66: =(((1.005+(1.88*(E66/1000)))*A66)+(2487*(E66/1000))) -> 110.0383847 | I66: 0.03057459472 | J66: =((22.41/273)*(A66+273))*((1/28.96)+((1/18.1)*I66)) -> 0.9068231303 | K66: 32
A67: 32.5 | B67: 32.4 | C67: 4892.911934 | D67: 96432.08807 | E67: =I67*1000 -> 31.49345702 | G67: 32.5 | H67: 112.9109778 | I67: 0.03149345702 | J67: 0.9095828249 | K67: 32.5
A68: 33 | B68: 32.9 | C68: =611.14*EXP(17.269*(((273.16+A68)-273.16)/((273.16+A68)-35.86))) -> 5032.333395 | D68: 96292.66661 | E68: 32.43774827 | G68: 33 | H68: 115.8501178 | I68: =(18/29)*(C68/($N$2-C68)) -> 0.03243774827 | J68: 0.9123819767 | K68: 33
A69: 33.5 | B69: 33.4 | C69: 5175.190644 | D69: 96149.80936 | E69: 33.40815045 | G69: 33.5 | H69: 118.8576155 | I69: 0.03340815045 | J69: 0.9152217066 | K69: 33.5
A70: 34 | B70: 33.9 | C70: 5321.554208 | D70: 96003.44579 | E70: 34.40536555 | G70: 34 | H70: 121.9353351 | I70: 0.03440536555 | J70: 0.9181031697 | K70: 34
A71: 34.5 | B71: 34.4 | C71: 5471.495737 | D71: 95853.50426 | E71: 35.43011628 | G71: 34.5 | H71: 125.0851965 | I71: 0.03543011628 | J71: 0.9210275562 | K71: 34.5
A72: 35 | B72: 34.9 | C72: 5625.088022 | D72: 95699.91198 | E72: 36.48314687 | G72: 35 | H72: 128.3091773 | I72: 0.03648314687 | J72: 0.9239960931 | K72: 35
A73: 35.5 | B73: 35.4 | C73: 5782.405004 | D73: 95542.595 | E73: 37.56522385 | G73: 35.5 | H73: 131.6093147 | I73: 0.03756522385 | J73: 0.9270100452 | K73: 35.5
A74: 36 | B74: 35.9 | C74: 5943.521788 | D74: 95381.47821 | E74: 38.67713688 | G74: 36 | H74: 134.9877081 | I74: 0.03867713688 | J74: 0.9300707168 | K74: 36
A75: 36.5 | B75: 36.4 | C75: 6108.514653 | D75: 95216.48535 | E75: 39.8196997 | G75: 36.5 | H75: 138.446521 | I75: 0.0398196997 | J75: 0.933179453 | K75: 36.5
A76: 37 | B76: 36.9 | C76: 6277.461065 | D76: 95047.53894 | E76: 40.99375099 | G76: 37 | H76: 141.987984 | I76: 0.04099375099 | J76: 0.9363376414 | K76: 37
A77: 37.5 | B77: 37.4 | C77: 6450.43969 | D77: 94874.56031 | E77: 42.20015538 | G77: 37.5 | H77: 145.6143974 | I77: 0.04220015538 | J77: 0.9395467139 | K77: 37.5
A78: 38 | B78: 37.9 | C78: 6627.530404 | D78: 94697.4696 | E78: 43.43980445 | G78: 38 | H78: 149.3281333 | I78: 0.04343980445 | J78: 0.942808148 | K78: 38
A79: 38.5 | B79: 38.4 | C79: 6808.814308 | D79: 94516.18569 | E79: 44.71361782 | G79: 38.5 | H79: 153.1316392 | I79: 0.04471361782 | J79: 0.9461234691 | K79: 38.5
A80: 39 | B80: 38.9 | C80: 6994.373739 | D80: 94330.62626 | E80: 46.02254428 | G80: 39 | H80: 157.0274406 | I80: 0.04602254428 | J80: 0.9494942521 | K80: 39
A81: 39.5 | B81: 39.4 | C81: 7184.292279 | D81: 94140.70772 | E81: 47.36756293 | G81: 39.5 | H81: 161.0181442 | I81: 0.04736756293 | J81: 0.9529221236 | K81: 39.5
A82: 40 | B82: 39.9 | C82: 7378.654773 | D82: 93946.34523 | E82: 48.74968446 | G82: 40 | H82: 165.1064415 | I82: 0.04874968446 | J82: 0.9564087637 | K82: 40
A83: 40.5 | B83: 40.4 | C83: 7577.547337 | D83: 93747.45266 | E83: 50.16995246 | G83: 40.5 | H83: 169.295112 | I83: 0.05016995246 | J83: 0.9599559088 | K83: 40.5
A84: 41 | B84: 40.9 | C84: 7781.057374 | D84: 93543.94263 | E84: 51.62944476 | G84: 41 | H84: 173.5870267 | I84: 0.05162944476 | J84: 0.9635653531 | K84: 41
A85: 41.5 | B85: 41.4 | C85: 7989.273581 | D85: 93335.72642 | E85: 53.12927487 | G85: 41.5 | H85: 177.9851526 | I85: 0.05312927487 | J85: 0.9672389517 | K85: 41.5
A86: 42 | B86: 41.9 | C86: 8202.285966 | D86: 93122.71403 | E86: 54.67059354 | G86: 42 | H86: 182.4925562 | I86: 0.05467059354 | J86: 0.9709786231 | K86: 42
A87: 42.5 | B87: 42.4 | C87: 8420.18586 | D87: 92904.81414 | E87: 56.25459031 | G87: 42.5 | H87: 187.1124079 | I87: 0.05625459031 | J87: 0.9747863515 | K87: 42.5
A88: 43 | B88: 42.9 | C88: 8643.065925 | D88: 92681.93407 | E88: 57.88249525 | G88: 43 | H88: 191.8479866 | I88: 0.05788249525 | J88: 0.9786641902 | K88: 43
A89: 43.5 | B89: 43.4 | C89: 8871.020173 | D89: 92453.97983 | E89: 59.55558065 | G89: 43.5 | H89: 196.7026845 | I89: 0.05955558065 | J89: 0.9826142641 | K89: 43.5
A90: 44 | B90: 43.9 | C90: 9104.143974 | D90: 92220.85603 | E90: 61.27516299 | G90: 44 | H90: 201.6800118 | I90: 0.06127516299 | J90: 0.9866387731 | K90: 44
A91: 44.5 | B91: 44.4 | C91: 9342.534068 | D91: 91982.46593 | E91: 63.04260481 | G91: 44.5 | H91: 206.7836025 | I91: 0.06304260481 | J91: 0.9907399957 | K91: 44.5
A92: 45 | B92: 44.9 | C92: 9586.28858 | D92: 91738.71142 | E92: 64.85931687 | G92: 45 | H92: 212.0172193 | I92: 0.06485931687 | J92: 0.9949202919 | K92: 45
A93: 45.5 | B93: 45.4 | C93: 9835.507032 | D93: 91489.49297 | E93: 66.72676031 | G93: 45.5 | H93: 217.38476 | I93: 0.06672676031 | J93: 0.9991821076 | K93: 45.5
A94: 46 | B94: 45.9 | C94: 10090.29035 | D94: 91234.70965 | E94: 68.64644898 | G94: 46 | H94: 222.8902635 | I94: 0.06864644898 | J94: 1.003527978 | K94: 46
A95: 46.5 | B95: 46.4 | C95: 10350.7409 | D95: 90974.2591 | E95: 70.61995187 | G95: 46.5 | H95: 228.5379165 | I95: 0.07061995187 | J95: 1.007960532 | K95: 46.5
A96: 47 | B96: 46.9 | C96: 10616.96245 | D96: 90708.03755 | E96: 72.64889573 | G96: 47 | H96: 234.3320601 | I96: 0.07264889573 | J96: 1.012482497 | K96: 47
A97: 47.5 | B97: 47.4 | C97: 10889.06024 | D97: 90435.93976 | E97: 74.7349678 | G97: 47.5 | H97: 240.2771976 | I97: 0.0747349678 | J97: 1.017096702 | K97: 47.5
A98: 48 | B98: 47.9 | C98: 11167.14096 | D98: 90157.85904 | E98: 76.8799187 | G98: 48 | H98: 246.3780017 | I98: 0.0768799187 | J98: 1.021806084 | K98: 48
A99: 48.5 | B99: 48.4 | C99: 11451.31278 | D99: 89873.68722 | E99: 79.08556551 | G99: 48.5 | H99: 252.6393233 | I99: 0.07908556551 | J99: 1.026613694 | K99: 48.5
A100: 49 | B100: 48.9 | C100: 11741.68533 | D100: 89583.31467 | E100: 81.35379502 | G100: 49 | H100: 259.0661998 | I100: 0.08135379502 | J100: 1.031522699 | K100: 49
A101: 49.5 | B101: 49.4 | C101: 12038.36977 | D101: 89286.63023 | E101: 83.68656717 | G101: 49.5 | H101: 265.6638645 | I101: 0.08368656717 | J101: 1.036536392 | K101: 49.5
A102: 50 | B102: 49.9 | C102: 12341.47873 | D102: 88983.52127 | E102: 86.08591873 | G102: 50 | H102: 272.4377563 | I102: 0.08608591873 | J102: 1.041658197 | K102: 50
A103: 50.5 | B103: 50.4 | C103: 12651.12641 | D103: 88673.87359 | E103: 88.55396716 | G103: 50.5 | H103: 279.39353 | I103: 0.08855396716 | J103: 1.046891671 | K103: 50.5
A104: 51 | B104: 50.9 | C104: 12967.4285 | D104: 88357.5715 | E104: 91.09291473 | G104: 51 | H104: 286.5370676 | I104: 0.09109291473 | J104: 1.052240519 | K104: 51
A105: 51.5 | B105: 51.4 | C105: 13290.50226 | D105: 88034.49774 | E105: 93.7050529 | G105: 51.5 | H105: 293.8744898 | I105: 0.0937050529 | J105: 1.057708596 | K105: 51.5
A106: 52 | B106: 51.9 | C106: 13620.46651 | D106: 87704.53349 | E106: 96.39276698 | G106: 52 | H106: 301.4121684 | I106: 0.09639276698 | J106: 1.063299915 | K106: 52
A107: 52.5 | B107: 52.4 | C107: 13957.44162 | D107: 87367.55838 | E107: 99.15854107 | G107: 52.5 | H107: 309.1567397 | I107: 0.09915854107 | J107: 1.069018657 | K107: 52.5
A108: 53 | B108: 52.9 | C108: 14301.54957 | D108: 87023.45043 | E108: 102.0049633 | G108: 53 | H108: 317.1151184 | I108: 0.1020049633 | J108: 1.07486918 | K108: 53
A109: 53.5 | B109: 53.4 | C109: 14652.91393 | D109: 86672.08607 | E109: 104.9347316 | G109: 53.5 | H109: 325.2945129 | I109: 0.1049347316 | J109: 1.080856028 | K109: 53.5
A110: 54 | B110: 53.9 | C110: 15011.65986 | D110: 86313.34014 | E110: 107.9506594 | G110: 54 | H110: 333.7024408 | I110: 0.1079506594 | J110: 1.086983939 | K110: 54
A111: 54.5 | B111: 54.4 | C111: 15377.91417 | D111: 85947.08583 | E111: 111.0556822 | G111: 54.5 | H111: 342.3467467 | I111: 0.1110556822 | J111: 1.093257861 | K111: 54.5
A112: 55 | B112: 54.9 | C112: 15751.8053 | D112: 85573.1947 | E112: 114.2528643 | G112: 55 | H112: 351.2356196 | I112: 0.1142528643 | J112: 1.099682957 | K112: 55
A113: 55.5 | B113: 55.4 | C113: 16133.46331 | D113: 85191.53669 | E113: 117.5454061 | G113: 55.5 | H113: 360.3776128 | I113: 0.1175454061 | J113: 1.106264622 | K113: 55.5
A114: 56 | B114: 55.9 | C114: 16523.01996 | D114: 84801.98004 | E114: 120.9366521 | G114: 56 | H114: 369.7816645 | I114: 0.1209366521 | J114: 1.113008496 | K114: 56
A115: 56.5 | B115: 56.4 | C115: 16920.60864 | D115: 84404.39136 | E115: 124.4300986 | G115: 56.5 | H115: 379.4571203 | I115: 0.1244300986 | J115: 1.119920475 | K115: 56.5
A116: 57 | B116: 56.9 | C116: 17326.36445 | D116: 83998.63555 | E116: 128.0294032 | G116: 57 | H116: 389.4137566 | I116: 0.1280294032 | J116: 1.127006728 | K116: 57
A117: 57.5 | B117: 57.4 | C117: 17740.42419 | D117: 83584.57581 | E117: 131.7383939 | G117: 57.5 | H117: 399.6618061 | I117: 0.1317383939 | J117: 1.134273713 | K117: 57.5
A118: 58 | B118: 57.9 | C118: 18162.92636 | D118: 83162.07364 | E118: 135.5610798 | G118: 58 | H118: 410.2119856 | I118: 0.1355610798 | J118: 1.141728194 | K118: 58
A119: 58.5 | B119: 58.4 | C119: 18594.01118 | D119: 82730.98882 | E119: 139.5016614 | G119: 58.5 | H119: 421.0755245 | I119: 0.1395016614 | J119: 1.149377261 | K119: 58.5
A120: 59 | B120: 58.9 | C120: 19033.8206 | D120: 82291.1794 | E120: 143.5645428 | G120: 59 | H120: 432.264197 | I120: 0.1435645428 | J120: 1.157228346 | K120: 59
A121: 59.5 | B121: 59.4 | C121: 19482.49833 | D121: 81842.50167 | E121: 147.7543443 | G121: 59.5 | H121: 443.7903553 | I121: 0.1477543443 | J121: 1.165289249 | K121: 59.5
A122: 60 | B122: 59.9 | C122: 19940.18984 | D122: 81384.81016 | E122: 152.075916 | G122: 60 | H122: 455.6669665 | I122: 0.152075916 | J122: 1.173568157 | K122: 60
A123: 60.5 | B123: 60.4 | C123: 20407.04235 | D123: 80917.95765 | E123: 156.5343522 | G123: 60.5 | H123: 467.907651 | I123: 0.1565343522 | J123: 1.182073673 | K123: 60.5
A124: 61 | B124: 60.9 | C124: 20883.20488 | D124: 80441.79512 | E124: 161.1350072 | G124: 61 | H124: 480.5267256 | I124: 0.1611350072 | J124: 1.190814838 | K124: 61
A125: 61.5 | B125: 61.4 | C125: 21368.82825 | D125: 79956.17175 | E125: 165.8835128 | G125: 61.5 | H125: 493.539248 | I125: 0.1658835128 | J125: 1.199801164 | K125: 61.5
A126: 62 | B126: 61.9 | C126: 21864.06508 | D126: 79460.93492 | E126: 170.7857959 | G126: 62 | H126: 506.9610667 | I126: 0.1707857959 | J126: 1.20904266 | K126: 62
A127: 62.5 | B127: 62.4 | C127: 22369.0698 | D127: 78955.9302 | E127: 175.8480989 | G127: 62.5 | H127: 520.8088735 | I127: 0.1758480989 | J127: 1.218549871 | K127: 62.5
A128: 63 | B128: 62.9 | C128: 22883.99869 | D128: 78441.00131 | E128: 181.0770008 | G128: 63 | H128: 535.1002611 | I128: 0.1810770008 | J128: 1.228333912 | K128: 63
A129: 63.5 | B129: 63.4 | C129: 23409.00988 | D129: 77915.99012 | E129: 186.4794409 | G129: 63.5 | H129: 549.8537851 | I129: 0.1864794409 | J129: 1.238406505 | K129: 63.5
A130: 64 | B130: =A130-0.1 -> 63.9 | C130: 23944.26334 | D130: =$N$2-C130 -> 77380.73666 | E130: 192.0627432 | G130: 64 | H130: =(((1.005+(1.88*(E130/1000)))*A130)+(2487*(E130/1000))) -> 565.0890316 | I130: 0.1920627432 | J130: =((22.41/273)*(A130+273))*((1/28.96)+((1/18.1)*I130)) -> 1.248780025 | K130: 64
A131: 64.5 | B131: 64.4 | C131: 24489.92091 | D131: 76835.07909 | E131: =I131*1000 -> 197.8346446 | G131: 64.5 | H131: 580.8266901 | I131: 0.1978346446 | J131: 1.259467545 | K131: 64.5
A132: 65 | B132: 64.9 | C132: =611.14*EXP(17.269*(((273.16+A132)-273.16)/((273.16+A132)-35.86))) -> 25046.14632 | D132: 76278.85368 | E132: 203.8033239 | G132: 65 | H132: 597.0886326 | I132: =(18/29)*(C132/($N$2-C132)) -> 0.2038033239 | J132: 1.270482885 | K132: 65
A133: 65.5 | B133: 65.4 | C133: 25613.10519 | D133: 75711.89481 | E133: 209.9774344 | G133: 65.5 | H133: 613.8980006 | I133: 0.2099774344 | J133: 1.281840669 | K133: 65.5
A134: 66 | B134: 65.9 | C134: 26190.96504 | D134: 75134.03496 | E134: 216.3661391 | G134: 66 | H134: 631.2792986 | I134: 0.2163661391 | J134: 1.293556381 | K134: 66
A135: 66.5 | B135: 66.4 | C135: 26779.89533 | D135: 74545.10467 | E135: 222.9791489 | G135: 66.5 | H135: 649.2584966 | I135: 0.2229791489 | J135: 1.305646433 | K135: 66.5
A136: 67 | B136: 66.9 | C136: 27380.06742 | D136: 73944.93258 | E136: 229.8267644 | G136: 67 | H136: 667.8631424 | I136: 0.2298267644 | J136: 1.318128235 | K136: 67
A137: 67.5 | B137: 67.4 | C137: 27991.65462 | D137: 73333.34538 | E137: 236.9199218 | G137: 67.5 | H137: 687.1224836 | I137: 0.2369199218 | J137: 1.331020271 | K137: 67.5
A138: 68 | B138: 67.9 | C138: 28614.83221 | D138: 72710.16779 | E138: 244.2702427 | G138: 68 | H138: 707.0676015 | I138: 0.2442702427 | J138: 1.344342184 | K138: 68
A139: 68.5 | B139: 68.4 | C139: 29249.77741 | D139: 72075.22259 | E139: 251.8900893 | G139: 68.5 | H139: 727.7315578 | I139: 0.2518900893 | J139: 1.35811487 | K139: 68.5
A140: 69 | B140: 68.9 | C140: 29896.66944 | D140: 71428.33056 | E140: 259.7926243 | G140: 69 | H140: 749.1495559 | I140: 0.2597926243 | J140: 1.372360579 | K140: 69
A141: 69.5 | B141: 69.4 | C141: 30555.6895 | D141: 70769.3105 | E141: 267.9918773 | G141: 69.5 | H141: 771.3591175 | I141: 0.2679918773 | J141: 1.387103025 | K141: 69.5
A142: 70 | B142: 69.9 | C142: 31227.02078 | D142: 70097.97922 | E142: 276.5028175 | G142: 70 | H142: 794.400278 | I142: 0.2765028175 | J142: 1.402367515 | K142: 70
A143: 70.5 | B143: 70.4 | C143: 31910.84849 | D143: 69414.15151 | E143: 285.3414343 | G143: 70.5 | H143: 818.3158007 | I143: 0.2853414343 | J143: 1.418181077 | K143: 70.5
A144: 71 | B144: 70.9 | C144: 32607.35988 | D144: 68717.64012 | E144: 294.5248255 | G144: 71 | H144: 843.1514147 | I144: 0.2945248255 | J144: 1.434572615 | K144: 71
A145: 71.5 | B145: 71.4 | C145: 33316.74422 | D145: 68008.25578 | E145: 304.0712961 | G145: 71.5 | H145: 868.956077 | I145: 0.3040712961 | J145: 1.451573074 | K145: 71.5
A146: 72 | B146: 71.9 | C146: 34039.19281 | D146: 67285.80719 | E146: 314.0004666 | G146: 72 | H146: 895.7822636 | I146: 0.3140004666 | J146: 1.469215623 | K146: 72
A147: 72.5 | B147: 72.4 | C147: 34774.89905 | D147: 66550.10095 | E147: 324.3333939 | G147: 72.5 | H147: 923.6862921 | I147: 0.3243333939 | J147: 1.487535861 | K147: 72.5
A148: 73 | B148: 72.9 | C148: 35524.05838 | D148: 65800.94162 | E148: 335.0927054 | G148: 73 | H148: 952.7286812 | I148: 0.3350927054 | J148: 1.506572041 | K148: 73
A149: 73.5 | B149: 73.4 | C149: 36286.86832 | D149: 65038.13168 | E149: 346.302749 | G149: 73.5 | H149: 982.9745505 | I149: 0.346302749 | J149: 1.526365325 | K149: 73.5
A150: 74 | B150: 73.9 | C150: 37063.52851 | D150: 64261.47149 | E150: 357.9897596 | G150: 74 | H150: 1014.494067 | I150: 0.3579897596 | J150: 1.546960067 | K150: 74
A151: 74.5 | B151: 74.4 | C151: 37854.24066 | D151: 63470.75934 | E151: 370.1820465 | G151: 74.5 | H151: 1047.362947 | I151: 0.3701820465 | J151: 1.568404126 | K151: 74.5
A152: 75 | B152: 74.9 | C152: 38659.20863 | D152: 62665.79137 | E152: 382.9102027 | G152: 75 | H152: 1081.663013 | I152: 0.3829102027 | J152: 1.590749224 | K152: 75
A153: 75.5 | B153: 75.4 | C153: 39478.63838 | D153: 61846.36162 | E153: 396.2073403 | G153: 75.5 | H153: 1117.482825 | I153: 0.3962073403 | J153: 1.61405134 | K153: 75.5
A154: 76 | B154: 75.9 | C154: 40312.73802 | D154: 61012.26198 | E154: 410.1093559 | G154: 76 | H154: 1154.918393 | I154: 0.4101093559 | J154: 1.638371164 | K154: 76
A155: 76.5 | B155: 76.4 | C155: 41161.71781 | D155: 60163.28219 | E155: 424.65523 | G155: 76.5 | H155: 1194.073972 | I155: 0.42465523 | J155: 1.663774596 | K155: 76.5
A156: 77 | B156: 76.9 | C156: 42025.79017 | D156: 59299.20983 | E156: 439.8873658 | G156: 77 | H156: 1235.062974 | I156: 0.4398873658 | J156: 1.690333324 | K156: 77
A157: 77.5 | B157: 77.4 | C157: 42905.16968 | D157: 58419.83032 | E157: 455.851974 | G157: 77.5 | H157: 1278.008992 | I157: 0.455851974 | J157: 1.718125474 | K157: 77.5
A158: 78 | B158: 77.9 | C158: 43800.07312 | D158: 57524.92688 | E158: 472.5995104 | G158: 78 | H158: 1323.046975 | I158: 0.4725995104 | J158: 1.747236348 | K158: 78
A159: 78.5 | B159: 78.4 | C159: 44710.71946 | D159: 56614.28054 | E159: 490.1851755 | G159: 78.5 | H159: 1370.32456 | I159: 0.4901851755 | J159: 1.777759269 | K159: 78.5
A160: 79 | B160: 78.9 | C160: 45637.32986 | D160: 55687.67014 | E160: 508.6694858 | G160: 79 | H160: 1420.003603 | I160: 0.5086694858 | J160: 1.809796547 | K160: 79
A161: 79.5 | B161: 79.4 | C161: 46580.12771 | D161: 54744.87229 | E161: 528.1189306 | G161: 79.5 | H161: 1472.261936 | I161: 0.5281189306 | J161: 1.843460591 | K161: 79.5
A162: 80 | B162: 79.9 | C162: 47539.33862 | D162: 53785.66138 | E162: 548.6067279 | G162: 80 | H162: 1527.295384 | I162: 0.5486067279 | J162: 1.878875185 | K162: 80
A163: 80.5 | B163: 80.4 | C163: 48515.19044 | D163: 52809.80956 | E163: 570.2136985 | G163: 80.5 | H163: 1585.320109 | I163: 0.5702136985 | J163: 1.916176964 | K163: 80.5
A164: 81 | B164: 80.9 | C164: 49507.91326 | D164: 51817.08674 | E164: 593.0292795 | G164: 81 | H164: 1646.575317 | I164: 0.5930292795 | J164: 1.955517131 | K164: 81
A165: 81.5 | B165: 81.4 | C165: 50517.73944 | D165: 50807.26056 | E165: 617.1527047 | G165: 81.5 | H165: 1711.326414 | I165: 0.6171527047 | J165: 1.997063451 | K165: 81.5
A166: 82 | B166: 81.9 | C166: 51544.90359 | D166: 49780.09641 | E166: 642.6943847 | G166: 82 | H166: 1779.868701 | I166: 0.6426943847 | J166: 2.041002583 | K166: 82
A167: 82.5 | B167: 82.4 | C167: 52589.64261 | D167: 48735.35739 | E167: 669.7775267 | G167: 82.5 | H167: 1852.531703 | I167: 0.6697775267 | J167: 2.08754282 | K167: 82.5
A168: 83 | B168: 82.9 | C168: 53652.19569 | D168: 47672.80431 | E168: 698.5400444 | G168: 83 | H168: 1929.684279 | I168: 0.6985400444 | J168: 2.136917316 | K168: 83
A169: 83.5 | B169: 83.4 | C169: 54732.80431 | D169: 46592.19569 | E169: 729.1368207 | G169: 83.5 | H169: 2011.740671 | I169: 0.7291368207 | J169: 2.189387913 | K169: 83.5
A170: 84 | B170: 83.9 | C170: 55831.71228 | D170: 45493.28772 | E170: 761.7424015 | G170: 84 | H170: 2099.167713 | I170: 0.7617424015 | J170: 2.245249693 | K170: 84
A171: 84.5 | B171: 84.4 | C171: 56949.1657 | D171: 44375.8343 | E171: 796.5542187 | G171: 84.5 | H171: 2192.493445 | I171: 0.7965542187 | J171: 2.304836428 | K171: 84.5
A172: 85 | B172: 84.9 | C172: 58085.41302 | D172: 43239.58698 | E172: 833.7964699 | G172: 85 | H172: 2292.317496 | I172: 0.8337964699 | J172: 2.368527137 | K172: 85
A173: 85.5 | B173: 85.4 | C173: 59240.70503 | D173: 42084.29497 | E173: 873.7248136 | G173: 85.5 | H173: 2399.323638 | I173: 0.8737248136 | J173: 2.436754027 | K173: 85.5
A174: 86 | B174: 85.9 | C174: 60415.29486 | D174: 40909.70514 | E174: 916.6320902 | G174: 86 | H174: 2514.295085 | I174: 0.9166320902 | J174: 2.510012158 | K174: 86
A175: 86.5 | B175: 86.4 | C175: 61609.438 | D175: 39715.562 | E175: 962.8553369 | G175: 86.5 | H175: 2638.133258 | I175: 0.9628553369 | J175: 2.588871309 | K175: 86.5
A176: 87 | B176: 86.9 | C176: 62823.39232 | D176: 38501.60768 | E176: 1012.784454 | G176: 87 | H176: 2771.880962 | I176: 1.012784454 | J176: 2.673990622 | K176: 87
A177: 87.5 | B177: 87.4 | C177: 64057.41805 | D177: 37267.58195 | E177: 1066.872994 | G177: 87.5 | H177: 2916.751243 | I177: 1.066872994 | J177: 2.766136847 | K177: 87.5
A178: 88 | B178: 87.9 | C178: 65311.77784 | D178: 36013.22216 | E178: 1125.651703 | G178: 88 | H178: 3074.163603 | I178: 1.125651703 | J178: 2.86620723 | K178: 88
A179: 88.5 | B179: 88.4 | C179: 66586.73669 | D179: 34738.26331 | E179: 1189.745678 | G179: 88.5 | H179: 3245.789888 | I179: 1.189745678 | J179: 2.975258517 | K179: 88.5
A180: 89 | B180: 88.9 | C180: 67882.56207 | D180: 33442.43793 | E180: 1259.896307 | G180: 89 | H180: 3433.612965 | I180: 1.259896307 | J180: 3.094544046 | K180: 89
A181: 89.5 | B181: 89.4 | C181: 69199.5238 | D181: 32125.4762 | E181: 1336.989631 | G181: 89.5 | H181: 3640.002588 | I181: 1.336989631 | J181: 3.225561698 | K181: 89.5
A182: 90 | B182: 89.9 | C182: 70537.89418 | D182: 30787.10582 | E182: 1422.09344 | G182: 90 | H182: 3867.814595 | I182: 1.42209344 | J182: 3.370116595 | K182: 90
A183: 90.5 | B183: 90.4 | C183: 71897.94793 | D183: 29427.05207 | E183: 1516.50639 | G183: 90.5 | H183: 4120.522289 | I183: 1.51650639 | J183: 3.530404146 | K183: 90.5
A184: 91 | B184: 90.9 | C184: 73279.96219 | D184: 28045.03781 | E184: 1621.823967 | G184: 91 | H184: 4402.392849 | I184: 1.621823967 | J184: 3.709121554 | K184: 91
A185: 91.5 | B185: 91.4 | C185: 74684.21659 | D185: 26640.78341 | E185: 1740.028434 | G185: 91.5 | H185: 4718.727908 | I185: 1.740028434 | J185: 3.909619875 | K185: 91.5
A186: 92 | B186: 91.9 | C186: 76110.99321 | D186: 25214.00679 | E186: 1873.613604 | G186: 92 | H186: 5076.197241 | I186: 1.873613604 | J186: 4.136114942 | K186: 92
A187: 92.5 | B187: 92.4 | C187: 77560.57658 | D187: 23764.42342 | E187: 2025.761227 | G187: 92.5 | H187: 5483.310548 | I187: 2.025761227 | J187: 4.39398556 | K187: 92.5
A188: 93 | B188: 92.9 | C188: 79033.25375 | D188: 22291.74625 | E188: 2200.595794 | G188: 93 | H188: 5951.098907 | I188: 2.200595794 | J188: 4.690204245 | K188: 93
A189: 93.5 | B189: 93.4 | C189: 80529.31424 | D189: 20795.68576 | E189: 2403.561626 | G189: 93.5 | H189: 6494.123328 | I189: 2.403561626 | J189: 5.033974704 | K189: 93.5
A190: 94 | B190: 93.9 | C190: 82049.05006 | D190: 19275.94994 | E190: 2641.996724 | G190: 94 | H190: 7132.009512 | I190: 2.641996724 | J190: 5.437701929 | K190: 94
A191: 94.5 | B191: 94.4 | C191: 83592.75574 | D191: 17732.24426 | E191: 2926.034514 | G191: 94.5 | H191: 7891.859629 | I191: 2.926034514 | J191: 5.91851662 | K191: 94.5
A192: 95 | B192: 94.9 | C192: 85160.72831 | D192: 16164.27169 | E192: 3270.075146 | G192: 95 | H192: 8812.187309 | I192: 3.270075146 | J192: 6.500762415 | K192: 95
A193: 95.5 | B193: 95.4 | C193: 86753.26736 | D193: 14571.73264 | E193: 3695.295331 | G193: 95.5 | H193: 9949.630313 | I193: 3.695295331 | J193: 7.220238818 | K193: 95.5
A194: 96 | B194: =A194-0.1 -> 95.9 | C194: 88370.67497 | D194: =$N$2-C194 -> 12954.32503 | E194: 4234.166089 | G194: 96 | H194: =(((1.005+(1.88*(E194/1000)))*A194)+(2487*(E194/1000))) -> 11391.03336 | I194: 4.234166089 | J194: =((22.41/273)*(A194+273))*((1/28.96)+((1/18.1)*I194)) -> 8.131838494 | K194: 96
A195: 96.5 | B195: 96.4 | C195: 90013.25578 | D195: 11311.74422 | E195: =I195*1000 -> 4939.140736 | G195: 96.5 | H195: 13276.68442 | I195: 4.939140736 | J195: 9.324234421 | K195: 96.5
A196: 97 | B196: 96.9 | C196: =611.14*EXP(17.269*(((273.16+A196)-273.16)/((273.16+A196)-35.86))) -> 91681.31698 | D196: 9643.683022 | E196: 5900.820764 | G196: 97 | H196: 15848.89991 | I196: =(18/29)*(C196/($N$2-C196)) -> 5.900820764 | J196: 10.95058953 | K196: 97
A197: 97.5 | B197: 97.4 | C197: =611.14*EXP(17.269*(((273.16+A197)-273.16)/((273.16+A197)-35.86))) -> 93375.16831 | D197: 7949.831686 | E197: 7290.343156 | G197: 97.5 | H197: 19565.39083 | I197: 7.290343156 | J197: 13.30021295 | K197: 97.5
A198: 98 | B198: 97.9 | C198: =611.14*EXP(17.269*(((273.16+A198)-273.16)/((273.16+A198)-35.86))) -> 95095.1221 | D198: 6229.877904 | E198: 9474.432637 | G198: 98 | H198: 25406.97344 | I198: 9.474432637 | J198: 16.99305727 | K198: 98
A199: 98.5 | B199: 98.4 | C199: =611.14*EXP(17.269*(((273.16+A199)-273.16)/((273.16+A199)-35.86))) -> 96841.49321 | D199: 4483.506795 | E199: 13406.58457 | G199: 98.5 | H199: 35923.79966 | I199: 13.40658457 | J199: 23.64101785 | K199: 98.5
A200: 99 | B200: 98.9 | C200: =611.14*EXP(17.269*(((273.16+A200)-273.16)/((273.16+A200)-35.86))) -> 98614.59911 | D200: 2710.400893 | E200: 22583.02883 | G200: 99 | H200: 60466.64103 | I200: 22.58302883 | J200: 39.15451329 | K200: 99
... 522 more rows

Sheet Démo1 (hidden)

Sheet Démo2 (hidden)

Sheet Densité (hidden)
A1: Densité | D1: Corrections à soustraire pour température
A2: 5 | B2: =-((A2*A2)/2000)+((108/8000)*A2)+0.957 -> 1.012 | C2: A2 B286 | D2: 20 | E2: 0 | H2: D2 E74
A3: 5.2 | B3: 1.01368 | D3: 27 | E3: 0.005
A4: 5.4 | B4: 1.01532 | D4: 28 | E4: 0.005
A5: 5.6 | B5: 1.01692 | D5: 29 | E5: 0.005
A6: 5.8 | B6: 1.01848 | D6: 30 | E6: 0.005
A7: 6 | B7: 1.02 | D7: 31 | E7: 0.005
A8: 6.2 | B8: 1.02148 | D8: 32 | E8: 0.005
A9: 6.4 | B9: 1.02292 | D9: 33 | E9: 0.005
A10: 6.6 | B10: 1.02432 | D10: 34 | E10: 0.005
A11: 6.8 | B11: 1.02568 | D11: 35 | E11: 0.005
A12: 7 | B12: 1.027 | D12: 36 | E12: 0.005
A13: 7.2 | B13: 1.02828 | D13: 37 | E13: 0.005
A14: 7.4 | B14: 1.02952 | D14: 38 | E14: 0.005
A15: 7.6 | B15: 1.03072 | D15: 39 | E15: 0.005
A16: 7.8 | B16: 1.03188 | D16: 40 | E16: 0.005
A17: 8 | B17: 1.033 | D17: 41 | E17: 0.005
A18: 8.2 | B18: 1.03408 | D18: 42 | E18: 0.005
A19: 8.4 | B19: 1.03512 | D19: 43 | E19: 0.005
A20: 8.6 | B20: 1.03612 | D20: 44 | E20: 0.01
A21: 8.8 | B21: 1.03708 | D21: 45 | E21: 0.01
A22: 9 | B22: 1.038 | D22: 46 | E22: 0.01
A23: 9.2 | B23: 1.03888 | D23: 47 | E23: 0.01
A24: 9.4 | B24: 1.03972 | D24: 48 | E24: 0.01
A25: 9.6 | B25: 1.04052 | D25: 49 | E25: 0.01
A26: 9.8 | B26: 1.04128 | D26: 50 | E26: 0.01
A27: 10 | B27: 1.042 | D27: 51 | E27: 0.01
A28: 10.2 | B28: =(0.00415*A28)+1.001 -> 1.04333 | D28: 52 | E28: 0.01
A29: 10.4 | B29: 1.04416 | D29: 53 | E29: 0.01
A30: 10.6 | B30: 1.04499 | D30: 54 | E30: 0.01
A31: 10.8 | B31: 1.04582 | D31: 55 | E31: 0.015
A32: 11 | B32: 1.04665 | D32: 56 | E32: 0.015
A33: 11.2 | B33: 1.04748 | D33: 57 | E33: 0.015
A34: 11.4 | B34: 1.04831 | D34: 58 | E34: 0.015
A35: 11.6 | B35: 1.04914 | D35: 59 | E35: 0.015
A36: 11.8 | B36: 1.04997 | D36: 60 | E36: 0.015
A37: 12 | B37: 1.0508 | D37: 61 | E37: 0.015
A38: 12.2 | B38: 1.05163 | D38: 62 | E38: 0.015
A39: 12.4 | B39: 1.05246 | D39: 63 | E39: 0.015
A40: 12.6 | B40: 1.05329 | D40: 64 | E40: 0.015
A41: 12.8 | B41: 1.05412 | D41: 65 | E41: 0.015
A42: 13 | B42: 1.05495 | D42: 66 | E42: 0.015
A43: 13.2 | B43: 1.05578 | D43: 67 | E43: 0.02
A44: 13.4 | B44: 1.05661 | D44: 68 | E44: 0.02
A45: 13.6 | B45: 1.05744 | D45: 69 | E45: 0.02
A46: 13.8 | B46: 1.05827 | D46: 70 | E46: 0.02
A47: 14 | B47: 1.0591 | D47: 71 | E47: 0.02
A48: 14.2 | B48: 1.05993 | D48: 72 | E48: 0.02
A49: 14.4 | B49: 1.06076 | D49: 73 | E49: 0.02
A50: 14.6 | B50: 1.06159 | D50: 74 | E50: 0.02
A51: 14.8 | B51: 1.06242 | D51: 75 | E51: 0.025
A52: 15 | B52: 1.06325 | D52: 76 | E52: 0.025
A53: 15.2 | B53: 1.06408 | D53: 77 | E53: 0.025
A54: 15.4 | B54: 1.06491 | D54: 78 | E54: 0.025
A55: 15.6 | B55: 1.06574 | D55: 79 | E55: 0.025
A56: 15.8 | B56: 1.06657 | D56: 80 | E56: 0.025
A57: 16 | B57: 1.0674 | D57: 81 | E57: 0.025
A58: 16.2 | B58: 1.06823 | D58: 82 | E58: 0.025
A59: 16.4 | B59: 1.06906 | D59: 83 | E59: 0.03
A60: 16.6 | B60: 1.06989 | D60: 84 | E60: 0.03
A61: 16.8 | B61: 1.07072 | D61: 85 | E61: 0.03
A62: 17 | B62: 1.07155 | D62: 86 | E62: 0.03
A63: 17.2 | B63: 1.07238 | D63: 87 | E63: 0.03
A64: 17.4 | B64: 1.07321 | D64: 88 | E64: 0.03
A65: 17.6 | B65: 1.07404 | D65: 89 | E65: 0.04
A66: 17.8 | B66: 1.07487 | D66: 90 | E66: 0.04
A67: 18 | B67: 1.0757 | D67: 91 | E67: 0.04
A68: 18.2 | B68: 1.07653 | D68: 92 | E68: 0.04
A69: 18.4 | B69: 1.07736 | D69: 93 | E69: 0.04
A70: 18.6 | B70: 1.07819 | D70: 94 | E70: 0.04
A71: 18.8 | B71: 1.07902 | D71: 95 | E71: 0.04
A72: 19 | B72: 1.07985 | D72: 96 | E72: 0.04
A73: 19.2 | B73: 1.08068 | D73: 97 | E73: 0.04
A74: 19.4 | B74: 1.08151 | D74: 98 | E74: 0.04
A75: 19.6 | B75: 1.08234 | D75: 99 | E75: 0.04
A76: 19.8 | B76: 1.08317
A77: 20 | B77: 1.084
A78: 20.2 | B78: 1.08483
A79: 20.4 | B79: 1.08566
A80: 20.6 | B80: 1.08649
A81: 20.8 | B81: 1.08732
A82: 21 | B82: 1.08815
A83: 21.2 | B83: 1.08898
A84: 21.4 | B84: 1.08981
A85: 21.6 | B85: 1.09064
A86: 21.8 | B86: 1.09147
A87: 22 | B87: 1.0923
A88: 22.2 | B88: 1.09313
A89: 22.4 | B89: 1.09396
A90: 22.6 | B90: 1.09479
A91: 22.8 | B91: 1.09562
A92: 23 | B92: =(0.00415*A92)+1.001 -> 1.09645
A93: 23.2 | B93: =(0.005*A93)+0.98+0.0006 -> 1.0966
A94: 23.4 | B94: =(0.005*A94)+0.98 -> 1.097
A95: 23.6 | B95: 1.098
A96: 23.8 | B96: 1.099
A97: 24 | B97: 1.1
A98: 24.2 | B98: 1.101
A99: 24.4 | B99: 1.102
A100: 24.6 | B100: 1.103
A101: 24.8 | B101: 1.104
A102: 25 | B102: 1.105
A103: 25.2 | B103: 1.106
A104: 25.4 | B104: 1.107
A105: 25.6 | B105: 1.108
A106: 25.8 | B106: 1.109
A107: 26 | B107: 1.11
A108: 26.2 | B108: 1.111
A109: 26.4 | B109: 1.112
A110: 26.6 | B110: 1.113
A111: 26.8 | B111: 1.114
A112: 27 | B112: 1.115
A113: 27.2 | B113: 1.116
A114: 27.4 | B114: 1.117
A115: 27.6 | B115: 1.118
A116: 27.8 | B116: 1.119
A117: 28 | B117: 1.12
A118: 28.2 | B118: 1.121
A119: 28.4 | B119: 1.122
A120: 28.6 | B120: 1.123
A121: 28.8 | B121: 1.124
A122: 29 | B122: 1.125
A123: 29.2 | B123: 1.126
A124: 29.4 | B124: 1.127
A125: 29.6 | B125: 1.128
A126: 29.8 | B126: 1.129
A127: 30 | B127: 1.13
A128: 30.2 | B128: 1.131
A129: 30.4 | B129: 1.132
A130: 30.6 | B130: 1.133
A131: 30.8 | B131: 1.134
A132: 31 | B132: 1.135
A133: 31.2 | B133: 1.136
A134: 31.4 | B134: 1.137
A135: 31.6 | B135: 1.138
A136: 31.8 | B136: 1.139
A137: 32 | B137: 1.14
A138: 32.2 | B138: 1.141
A139: 32.4 | B139: 1.142
A140: 32.6 | B140: 1.143
A141: 32.8 | B141: 1.144
A142: 33 | B142: 1.145
A143: 33.2 | B143: 1.146
A144: 33.4 | B144: 1.147
A145: 33.6 | B145: 1.148
A146: 33.8 | B146: 1.149
A147: 34 | B147: 1.15
A148: 34.2 | B148: 1.151
A149: 34.4 | B149: 1.152
A150: 34.6 | B150: 1.153
A151: 34.8 | B151: 1.154
A152: 35 | B152: 1.155
A153: 35.2 | B153: 1.156
A154: 35.4 | B154: 1.157
A155: 35.6 | B155: 1.158
A156: 35.8 | B156: 1.159
A157: 36 | B157: 1.16
A158: 36.2 | B158: =(0.005*A158)+0.98 -> 1.161
A159: 36.4 | B159: =(0.005*A159)+0.98 -> 1.162
A160: 36.6 | B160: =(0.005*A160)+0.98 -> 1.163
A161: 36.8 | B161: =(0.005*A161)+0.98 -> 1.164
A162: 37 | B162: =(0.005*A162)+0.98 -> 1.165
A163: 37.2 | B163: =(0.0056*A163)+0.96 -> 1.16832
A164: 37.4 | B164: 1.16944
A165: 37.6 | B165: 1.17056
A166: 37.8 | B166: 1.17168
A167: 38 | B167: 1.1728
A168: 38.2 | B168: 1.17392
A169: 38.4 | B169: 1.17504
A170: 38.6 | B170: 1.17616
A171: 38.8 | B171: 1.17728
A172: 39 | B172: 1.1784
A173: 39.2 | B173: 1.17952
A174: 39.4 | B174: 1.18064
A175: 39.6 | B175: 1.18176
A176: 39.8 | B176: 1.18288
A177: 40 | B177: 1.184
A178: 40.2 | B178: 1.18512
A179: 40.4 | B179: 1.18624
A180: 40.6 | B180: 1.18736
A181: 40.8 | B181: 1.18848
A182: 41 | B182: 1.1896
A183: 41.2 | B183: 1.19072
A184: 41.4 | B184: 1.19184
A185: 41.6 | B185: 1.19296
A186: 41.8 | B186: 1.19408
A187: 42 | B187: 1.1952
A188: 42.2 | B188: 1.19632
A189: 42.4 | B189: 1.19744
A190: 42.6 | B190: 1.19856
A191: 42.8 | B191: 1.19968
A192: 43 | B192: 1.2008
A193: 43.2 | B193: 1.20192
A194: 43.4 | B194: 1.20304
A195: 43.6 | B195: 1.20416
A196: 43.8 | B196: 1.20528
A197: 44 | B197: 1.2064
A198: 44.2 | B198: 1.20752
A199: 44.4 | B199: 1.20864
A200: 44.6 | B200: 1.20976
... 91 more rows
